[Event "Titled Tuesday Blitz January 17 Early 2023"]
[White "Tarnowska, Aleksandra"]
[Black "Janaszak, Dawid"]
[WhiteFideId "1180967"]
[BlackFideId "1119206"]
[WhiteElo "1835"]
[BlackElo "2316"]
[Result "0-1"]
[Round "01"]
[TimeControl "180+2"]
[Date "2023.01.17"]
[WhiteClock "0:00:02"]
[BlackClock "0:00:39"]

1. e4 {[%clk 0:02:59]}  c5 {[%clk 0:02:59]} 2. Nf3 {[%clk 0:02:56]}  Nc6 {[%clk 0:02:59]} 3. Bb5 {[%clk 0:02:54]}  g6 {[%clk 0:02:59]} 4. O-O {[%clk 0:02:53]}  Bg7 {[%clk 0:02:59]} 5. c3 {[%clk 0:02:50]}  Nf6 {[%clk 0:02:59]} 6. e5 {[%clk 0:02:49]}  Nd5 {[%clk 0:02:50]} 7. d4 {[%clk 0:02:41]}  cxd4 {[%clk 0:02:50]} 8. cxd4 {[%clk 0:02:40]}  d6 {[%clk 0:02:48]} 9. Bg5 {[%clk 0:02:18]}  O-O {[%clk 0:02:46]} 10. Bxc6 {[%clk 0:02:04]}  bxc6 {[%clk 0:02:46]} 11. Nc3 {[%clk 0:02:02]}  dxe5 {[%clk 0:02:37]} 12. dxe5 {[%clk 0:01:57]}  h6 {[%clk 0:02:35]} 13. Bh4 {[%clk 0:01:43]}  Rb8 {[%clk 0:02:35]} 14. Nxd5 {[%clk 0:01:41]}  cxd5 {[%clk 0:02:35]} 15. Qd2 {[%clk 0:01:32]}  g5 {[%clk 0:02:26]} 16. Bg3 {[%clk 0:01:31]}  Bf5 {[%clk 0:02:21]} 17. Nd4 {[%clk 0:01:16]}  Bd7 {[%clk 0:02:20]} 18. Rfe1 {[%clk 0:01:11]}  e6 {[%clk 0:02:16]} 19. b3 {[%clk 0:01:00]}  Qb6 {[%clk 0:02:12]} 20. Rac1 {[%clk 0:00:55]}  Rfc8 {[%clk 0:02:10]} 21. Nf3 {[%clk 0:00:29]}  Bf8 {[%clk 0:02:05]} 22. h4 {[%clk 0:00:28]}  Bb4 {[%clk 0:02:02]} 23. Qd3 {[%clk 0:00:09]}  Bxe1 {[%clk 0:02:02]} 24. Rxe1 {[%clk 0:00:10]}  Bb5 {[%clk 0:01:56]} 25. Qd2 {[%clk 0:00:10]}  Qd8 {[%clk 0:01:43]} 26. hxg5 {[%clk 0:00:10]}  h5 {[%clk 0:01:43]} 27. g6 {[%clk 0:00:07]}  fxg6 {[%clk 0:01:43]} 28. Qh6 {[%clk 0:00:07]}  Be8 {[%clk 0:01:31]} 29. Ng5 {[%clk 0:00:07]}  Qd7 {[%clk 0:01:27]} 30. Bh4 {[%clk 0:00:03]}  Rb4 {[%clk 0:01:20]} 31. g3 {[%clk 0:00:03]}  Rc6 {[%clk 0:01:05]} 32. Re3 {[%clk 0:00:03]}  Qg7 {[%clk 0:01:02]} 33. Qxg7+ {[%clk 0:00:04]}  Kxg7 {[%clk 0:01:03]} 34. Rf3 {[%clk 0:00:04]}  Rd4 {[%clk 0:00:55]} 35. Kg2 {[%clk 0:00:04]}  Rd2 {[%clk 0:00:54]} 36. a4 {[%clk 0:00:04]}  Rdc2 {[%clk 0:00:55]} 37. Re3 {[%clk 0:00:03]}  R2c3 {[%clk 0:00:53]} 38. Nf3 {[%clk 0:00:02]}  Rxe3 {[%clk 0:00:52]} 39. fxe3 {[%clk 0:00:03]}  Rc2+ {[%clk 0:00:51]} 40. Kf1 {[%clk 0:00:04]}  Rb2 {[%clk 0:00:50]} 41. Bf6+ {[%clk 0:00:04]}  Kg8 {[%clk 0:00:49]} 42. Nd4 {[%clk 0:00:04]}  Bf7 {[%clk 0:00:46]} 43. Ke1 {[%clk 0:00:04]}  Rg2 {[%clk 0:00:45]} 44. Bh4 {[%clk 0:00:03]}  g5 {[%clk 0:00:42]} 45. Bxg5 {[%clk 0:00:03]}  Rxg3 {[%clk 0:00:43]} 46. Bh6 {[%clk 0:00:03]}  h4 {[%clk 0:00:42]} 47. Kf2 {[%clk 0:00:04]}  Rg6 {[%clk 0:00:39]} 48. Bf4 {[%clk 0:00:04]}  h3 {[%clk 0:00:40]} 49. Nf3 {[%clk 0:00:04]}  Rg2+ {[%clk 0:00:40]} 50. Kf1 {[%clk 0:00:04]}  Rb2 {[%clk 0:00:41]} 51. Nh4 {[%clk 0:00:03]}  Rxb3 {[%clk 0:00:40]} 52. Kf2 {[%clk 0:00:02]}  Ra3 {[%clk 0:00:39]} 53. Kg3 {[%clk 0:00:03]}  d4 {[%clk 0:00:40]} 54. Kxh3 {[%clk 0:00:03]}  dxe3 {[%clk 0:00:40]} 55. Kg2 {[%clk 0:00:03]}  Ra2+ {[%clk 0:00:39]} 56. Kf3 {[%clk 0:00:03]}  e2 {[%clk 0:00:39]} 57. Bg3 {[%clk 0:00:03]}  Bh5+ {[%clk 0:00:39]} 58. Kf2 {[%clk 0:00:03]}  Ra1 {[%clk 0:00:40]} 59. Ng2 {[%clk 0:00:03]}  Rf1+ {[%clk 0:00:39]} 60. Ke3 {[%clk 0:00:02]}  Rf3+ {[%clk 0:00:40]} 61. Ke4 {[%clk 0:00:02]}  Rxg3 {[%clk 0:00:41]} 62. Ne1 {[%clk 0:00:01]}  Rg1 {[%clk 0:00:41]} 63. a5 {[%clk 0:00:01]}  Rxe1 {[%clk 0:00:40]} 64. a6 {[%clk 0:00:02]}  Ra1 {[%clk 0:00:39]} 65. Ke3 {[%clk 0:00:02]}  e1=Q+ {[%clk 0:00:39]} 66. Kd4 {[%clk 0:00:02]}  Ra4+ {[%clk 0:00:39]} 0-1


[Site "https://www.chess.com"]

[Event "Titled Tuesday Blitz January 17 Early 2023"]
[White "Florescu, Codrut-Constantin"]
[Black "Torres Dominguez, David"]
[WhiteFideId "1202200"]
[BlackFideId "2220857"]
[WhiteElo "2259"]
[BlackElo "1994"]
[Result "0-1"]
[Round "01"]
[TimeControl "180+2"]
[Date "2023.01.17"]
[WhiteClock "0:00:44"]
[BlackClock "0:00:04"]

1. d4 {[%clk 0:03:00]}  e5 {[%clk 0:02:59]} 2. dxe5 {[%clk 0:02:58]}  d6 {[%clk 0:02:58]} 3. Nf3 {[%clk 0:02:55]}  Bg4 {[%clk 0:02:57]} 4. Bg5 {[%clk 0:02:52]}  Qd7 {[%clk 0:02:56]} 5. Nbd2 {[%clk 0:02:50]}  Nc6 {[%clk 0:02:54]} 6. exd6 {[%clk 0:02:42]}  Bxd6 {[%clk 0:02:37]} 7. c3 {[%clk 0:02:42]}  f6 {[%clk 0:02:19]} 8. Be3 {[%clk 0:02:39]}  Nge7 {[%clk 0:02:15]} 9. Nc4 {[%clk 0:02:34]}  Nf5 {[%clk 0:02:10]} 10. Nxd6+ {[%clk 0:02:33]}  Nxd6 {[%clk 0:02:10]} 11. g3 {[%clk 0:02:30]}  O-O-O {[%clk 0:02:03]} 12. Bg2 {[%clk 0:02:28]}  Bh3 {[%clk 0:01:58]} 13. O-O {[%clk 0:02:23]}  h5 {[%clk 0:01:54]} 14. b4 {[%clk 0:02:18]}  h4 {[%clk 0:01:44]} 15. b5 {[%clk 0:02:05]}  Ne7 {[%clk 0:01:26]} 16. Qa4 {[%clk 0:01:57]}  hxg3 {[%clk 0:01:20]} 17. fxg3 {[%clk 0:01:56]}  Bxg2 {[%clk 0:01:16]} 18. Kxg2 {[%clk 0:01:55]}  Qh3+ {[%clk 0:01:04]} 19. Kg1 {[%clk 0:01:54]}  Nd5 {[%clk 0:01:05]} 20. Qxa7 {[%clk 0:01:47]}  Rhe8 {[%clk 0:01:00]} 21. Bf2 {[%clk 0:01:40]}  Rxe2 {[%clk 0:00:56]} 22. Rfe1 {[%clk 0:01:33]}  Ne3 {[%clk 0:00:50]} 23. Qxe3 {[%clk 0:01:27]}  Rxe3 {[%clk 0:00:50]} 24. Rxe3 {[%clk 0:01:28]}  Qh5 {[%clk 0:00:45]} 25. a4 {[%clk 0:01:25]}  Re8 {[%clk 0:00:45]} 26. Rxe8+ {[%clk 0:01:23]}  Nxe8 {[%clk 0:00:45]} 27. Nd4 {[%clk 0:01:23]}  Qc5 {[%clk 0:00:34]} 28. a5 {[%clk 0:01:21]}  Qxc3 {[%clk 0:00:33]} 29. Re1 {[%clk 0:01:21]}  Nd6 {[%clk 0:00:31]} 30. a6 {[%clk 0:01:20]}  bxa6 {[%clk 0:00:30]} 31. bxa6 {[%clk 0:01:20]}  Qa3 {[%clk 0:00:29]} 32. Ne6 {[%clk 0:01:15]}  Qxa6 {[%clk 0:00:26]} 33. Nxg7 {[%clk 0:01:14]}  Qc4 {[%clk 0:00:19]} 34. Ne6 {[%clk 0:01:15]}  Ne4 {[%clk 0:00:18]} 35. Nf4 {[%clk 0:01:11]}  Nd2 {[%clk 0:00:14]} 36. Rd1 {[%clk 0:00:57]}  Nf3+ {[%clk 0:00:11]} 37. Kg2 {[%clk 0:00:57]}  Qc6 {[%clk 0:00:11]} 38. Kh3 {[%clk 0:00:54]}  Ng5+ {[%clk 0:00:08]} 39. Kg4 {[%clk 0:00:54]}  Qf3+ {[%clk 0:00:08]} 40. Kf5 {[%clk 0:00:54]}  Qxd1 {[%clk 0:00:08]} 41. Bc5 {[%clk 0:00:55]}  Nf3 {[%clk 0:00:06]} 42. Be7 {[%clk 0:00:54]}  Nd2 {[%clk 0:00:06]} 43. Kxf6 {[%clk 0:00:54]}  Qf1 {[%clk 0:00:06]} 44. h4 {[%clk 0:00:53]}  Ne4+ {[%clk 0:00:05]} 45. Kg7 {[%clk 0:00:51]}  Nxg3 {[%clk 0:00:06]} 46. Bg5 {[%clk 0:00:52]}  Nf5+ {[%clk 0:00:05]} 47. Kg8 {[%clk 0:00:45]}  Nxh4 {[%clk 0:00:06]} 48. Ng6 {[%clk 0:00:45]}  Qg2 {[%clk 0:00:05]} 49. Ne7+ {[%clk 0:00:42]}  Kd7 {[%clk 0:00:04]} 50. Kf7 {[%clk 0:00:43]}  Qxg5 {[%clk 0:00:04]} 51. Nf5 {[%clk 0:00:44]}  Qxf5+ {[%clk 0:00:04]} 0-1


[Site "https://www.chess.com"]

[Event "Titled Tuesday Blitz January 17 Early 2023"]
[White "ritanovikova"]
[Black "Trent, Lawrence"]
[BlackFideId "408638"]
[WhiteElo "2137"]
[BlackElo "2403"]
[Result "0-1"]
[Round "01"]
[TimeControl "180+2"]
[Date "2023.01.17"]
[WhiteClock "0:02:20"]
[BlackClock "0:02:09"]

1. d4 {[%clk 0:03:00]}  Nf6 {[%clk 0:02:59]} 2. Bf4 {[%clk 0:03:00]}  c5 {[%clk 0:02:58]} 3. c3 {[%clk 0:02:59]}  Qb6 {[%clk 0:02:58]} 4. Qb3 {[%clk 0:02:47]}  cxd4 {[%clk 0:02:56]} 5. cxd4 {[%clk 0:02:43]}  Qxd4 {[%clk 0:02:52]} 6. e3 {[%clk 0:02:37]}  Qb6 {[%clk 0:02:52]} 7. Qc2 {[%clk 0:02:34]}  Nc6 {[%clk 0:02:32]} 8. Nc3 {[%clk 0:02:32]}  d6 {[%clk 0:02:31]} 9. Bc4 {[%clk 0:02:27]}  Bg4 {[%clk 0:02:21]} 10. h3 {[%clk 0:02:25]}  Bh5 {[%clk 0:02:12]} 11. Nge2 {[%clk 0:02:24]}  e6 {[%clk 0:02:11]} 12. Ng3 {[%clk 0:02:23]}  Bg6 {[%clk 0:02:11]} 13. e4 {[%clk 0:02:22]}  d5 {[%clk 0:02:10]} 14. exd5 {[%clk 0:02:20]}  Bxc2 {[%clk 0:02:09]} 0-1


[Site "https://www.chess.com"]

[Event "Titled Tuesday Blitz January 17 Early 2023"]
[White "Sailer, Mike"]
[Black "Belov, Alexei"]
[WhiteFideId "2012901"]
[BlackFideId "4128206"]
[WhiteElo "2109"]
[BlackElo "2421"]
[Result "0-1"]
[Round "01"]
[TimeControl "180+2"]
[Date "2023.01.17"]
[WhiteClock "0:00:01"]
[BlackClock "0:00:14"]

1. d4 {[%clk 0:02:59]}  d5 {[%clk 0:02:58]} 2. Nf3 {[%clk 0:02:58]}  Nf6 {[%clk 0:02:58]} 3. Bf4 {[%clk 0:02:59]}  e6 {[%clk 0:02:51]} 4. e3 {[%clk 0:02:59]}  Nbd7 {[%clk 0:02:50]} 5. c4 {[%clk 0:02:59]}  Be7 {[%clk 0:02:50]} 6. Be2 {[%clk 0:02:56]}  O-O {[%clk 0:02:48]} 7. O-O {[%clk 0:02:56]}  dxc4 {[%clk 0:02:48]} 8. Na3 {[%clk 0:02:52]}  a6 {[%clk 0:02:44]} 9. Nxc4 {[%clk 0:02:52]}  b5 {[%clk 0:02:40]} 10. Nce5 {[%clk 0:02:52]}  Bb7 {[%clk 0:02:40]} 11. Rc1 {[%clk 0:02:51]}  c5 {[%clk 0:02:39]} 12. dxc5 {[%clk 0:02:40]}  Nxc5 {[%clk 0:02:36]} 13. Nd4 {[%clk 0:02:33]}  Rc8 {[%clk 0:02:27]} 14. b4 {[%clk 0:02:20]}  Nce4 {[%clk 0:02:05]} 15. Nec6 {[%clk 0:02:16]}  Qe8 {[%clk 0:01:56]} 16. Nxe7+ {[%clk 0:02:10]}  Qxe7 {[%clk 0:01:57]} 17. a3 {[%clk 0:01:51]}  Nc3 {[%clk 0:01:46]} 18. Qd2 {[%clk 0:01:47]}  Nxe2+ {[%clk 0:01:45]} 19. Nxe2 {[%clk 0:01:34]}  Rfd8 {[%clk 0:01:35]} 20. Qb2 {[%clk 0:01:33]}  Nd5 {[%clk 0:01:31]} 21. Be5 {[%clk 0:01:22]}  f6 {[%clk 0:01:31]} 22. Bd4 {[%clk 0:01:22]}  e5 {[%clk 0:01:28]} 23. Bc5 {[%clk 0:01:22]}  Qe6 {[%clk 0:01:29]} 24. e4 {[%clk 0:01:15]}  Nb6 {[%clk 0:01:27]} 25. Bxb6 {[%clk 0:01:04]}  Qxb6 {[%clk 0:01:26]} 26. Nc3 {[%clk 0:01:00]}  Rc4 {[%clk 0:01:22]} 27. Rfd1 {[%clk 0:00:55]}  Bxe4 {[%clk 0:01:10]} 28. Nxe4 {[%clk 0:00:50]}  Rxe4 {[%clk 0:01:06]} 29. h3 {[%clk 0:00:32]}  Red4 {[%clk 0:00:57]} 30. Rxd4 {[%clk 0:00:32]}  exd4 {[%clk 0:00:57]} 31. Rc5 {[%clk 0:00:30]}  Qd6 {[%clk 0:00:51]} 32. Qb3+ {[%clk 0:00:27]}  Kh8 {[%clk 0:00:51]} 33. Qd3 {[%clk 0:00:27]}  h6 {[%clk 0:00:50]} 34. Kh1 {[%clk 0:00:21]}  Qe6 {[%clk 0:00:48]} 35. f3 {[%clk 0:00:19]}  Kg8 {[%clk 0:00:41]} 36. Rc7 {[%clk 0:00:14]}  Rd7 {[%clk 0:00:36]} 37. Rxd7 {[%clk 0:00:13]}  Qxd7 {[%clk 0:00:35]} 38. Kg1 {[%clk 0:00:12]}  Qd5 {[%clk 0:00:35]} 39. Kf2 {[%clk 0:00:12]}  Qa2+ {[%clk 0:00:34]} 40. Kg3 {[%clk 0:00:11]}  Qc4 {[%clk 0:00:34]} 41. Qf5 {[%clk 0:00:08]}  Qc7+ {[%clk 0:00:33]} 42. Kf2 {[%clk 0:00:08]}  Qd8 {[%clk 0:00:33]} 43. Ke2 {[%clk 0:00:08]}  Qe7+ {[%clk 0:00:32]} 44. Kd2 {[%clk 0:00:05]}  Qe3+ {[%clk 0:00:31]} 45. Kd1 {[%clk 0:00:05]}  d3 {[%clk 0:00:26]} 46. Qc8+ {[%clk 0:00:05]}  Kf7 {[%clk 0:00:27]} 47. Qd7+ {[%clk 0:00:05]}  Kg6 {[%clk 0:00:27]} 48. Qg4+ {[%clk 0:00:05]}  Qg5 {[%clk 0:00:27]} 49. Qe4+ {[%clk 0:00:05]}  Qf5 {[%clk 0:00:27]} 50. Qe8+ {[%clk 0:00:04]}  Kh7 {[%clk 0:00:27]} 51. Qe3 {[%clk 0:00:03]}  Qd5 {[%clk 0:00:25]} 52. Kd2 {[%clk 0:00:03]}  Qa2+ {[%clk 0:00:25]} 53. Kxd3 {[%clk 0:00:04]}  Qxa3+ {[%clk 0:00:25]} 54. Kd2 {[%clk 0:00:04]}  Qxb4+ {[%clk 0:00:25]} 55. Ke2 {[%clk 0:00:04]}  Qb2+ {[%clk 0:00:24]} 56. Kf1 {[%clk 0:00:04]}  Qb1+ {[%clk 0:00:24]} 57. Kf2 {[%clk 0:00:03]}  a5 {[%clk 0:00:24]} 58. f4 {[%clk 0:00:02]}  a4 {[%clk 0:00:23]} 59. Qg3 {[%clk 0:00:03]}  Qc2+ {[%clk 0:00:22]} 60. Kg1 {[%clk 0:00:03]}  b4 {[%clk 0:00:20]} 61. Qg4 {[%clk 0:00:03]}  f5 {[%clk 0:00:16]} 62. Qf3 {[%clk 0:00:01]}  a3 {[%clk 0:00:14]} 0-1


[Site "https://www.chess.com"]

[Event "Titled Tuesday Blitz January 17 Early 2023"]
[White "Hirneise, Jens"]
[Black "Adithya A Chullikkad"]
[WhiteFideId "24614734"]
[BlackFideId "45078734"]
[WhiteElo "2277"]
[BlackElo "2259"]
[Result "1-0"]
[Round "01"]
[TimeControl "180+2"]
[Date "2023.01.17"]
[WhiteClock "0:02:16"]
[BlackClock "0:02:06"]

1. d4 {[%clk 0:03:00]}  d5 {[%clk 0:02:57]} 2. Nf3 {[%clk 0:03:01]}  e6 {[%clk 0:02:57]} 3. e3 {[%clk 0:03:01]}  Nf6 {[%clk 0:02:56]} 4. Be2 {[%clk 0:03:02]}  Be7 {[%clk 0:02:55]} 5. O-O {[%clk 0:03:02]}  O-O {[%clk 0:02:55]} 6. Nbd2 {[%clk 0:03:03]}  b6 {[%clk 0:02:53]} 7. b3 {[%clk 0:02:56]}  Ba6 {[%clk 0:02:53]} 8. c4 {[%clk 0:02:54]}  c5 {[%clk 0:02:52]} 9. Bb2 {[%clk 0:02:54]}  Nbd7 {[%clk 0:02:49]} 10. Rc1 {[%clk 0:02:52]}  Rc8 {[%clk 0:02:48]} 11. cxd5 {[%clk 0:02:52]}  Bxe2 {[%clk 0:02:47]} 12. Qxe2 {[%clk 0:02:53]}  Nxd5 {[%clk 0:02:44]} 13. e4 {[%clk 0:02:42]}  Nf4 {[%clk 0:02:36]} 14. Qe3 {[%clk 0:02:36]}  Bg5 {[%clk 0:02:36]} 15. Nxg5 {[%clk 0:02:33]}  Qxg5 {[%clk 0:02:34]} 16. g3 {[%clk 0:02:20]}  Nh3+ {[%clk 0:02:16]} 17. Kg2 {[%clk 0:02:20]}  Qxe3 {[%clk 0:02:15]} 18. fxe3 {[%clk 0:02:21]}  Ng5 {[%clk 0:02:06]} 19. h4 {[%clk 0:02:21]}  cxd4 {[%clk 0:02:06]} 20. exd4 {[%clk 0:02:16]} 1-0


[Site "https://www.chess.com"]

[Event "Titled Tuesday Blitz January 17 Early 2023"]
[White "Larina, Maria"]
[Black "Al-Tarboush, Ward"]
[WhiteFideId "24113182"]
[BlackFideId "7601450"]
[WhiteElo "1948"]
[BlackElo "2256"]
[Result "0-1"]
[Round "01"]
[TimeControl "180+2"]
[Date "2023.01.17"]
[WhiteClock "0:00:03"]
[BlackClock "0:01:13"]

1. e4 {[%clk 0:02:56]}  c5 {[%clk 0:02:58]} 2. Nc3 {[%clk 0:02:56]}  Nc6 {[%clk 0:02:53]} 3. g3 {[%clk 0:02:56]}  g6 {[%clk 0:02:52]} 4. Bg2 {[%clk 0:02:56]}  Bg7 {[%clk 0:02:51]} 5. d3 {[%clk 0:02:56]}  e6 {[%clk 0:02:50]} 6. Be3 {[%clk 0:02:56]}  b6 {[%clk 0:02:48]} 7. Nge2 {[%clk 0:02:53]}  Nge7 {[%clk 0:02:47]} 8. O-O {[%clk 0:02:52]}  O-O {[%clk 0:02:46]} 9. Qd2 {[%clk 0:02:44]}  d5 {[%clk 0:02:39]} 10. Bh6 {[%clk 0:02:30]}  d4 {[%clk 0:02:31]} 11. Bxg7 {[%clk 0:02:28]}  Kxg7 {[%clk 0:02:32]} 12. Nd1 {[%clk 0:02:26]}  e5 {[%clk 0:02:31]} 13. f4 {[%clk 0:02:24]}  f6 {[%clk 0:02:30]} 14. h3 {[%clk 0:02:16]}  Bb7 {[%clk 0:02:14]} 15. g4 {[%clk 0:02:15]}  Qd6 {[%clk 0:02:11]} 16. Ng3 {[%clk 0:01:42]}  b5 {[%clk 0:01:45]} 17. f5 {[%clk 0:01:25]}  c4 {[%clk 0:01:44]} 18. g5 {[%clk 0:01:19]}  Rf7 {[%clk 0:01:35]} 19. gxf6+ {[%clk 0:01:18]}  Rxf6 {[%clk 0:01:32]} 20. Qg5 {[%clk 0:01:14]}  Kh8 {[%clk 0:01:25]} 21. fxg6 {[%clk 0:00:52]}  Rxg6 {[%clk 0:01:26]} 22. Qh4 {[%clk 0:00:47]}  Rag8 {[%clk 0:01:24]} 23. Rf3 {[%clk 0:00:45]}  Rh6 {[%clk 0:01:23]} 24. Nh5 {[%clk 0:00:39]}  Qg6 {[%clk 0:01:22]} 25. Rg3 {[%clk 0:00:09]}  Rxh5 {[%clk 0:01:22]} 26. Rxg6 {[%clk 0:00:07]}  Rxh4 {[%clk 0:01:22]} 27. Rxg8+ {[%clk 0:00:07]}  Kxg8 {[%clk 0:01:20]} 28. Nf2 {[%clk 0:00:07]}  Ng6 {[%clk 0:01:20]} 29. Ng4 {[%clk 0:00:07]}  Nf4 {[%clk 0:01:20]} 30. Kh2 {[%clk 0:00:05]}  Bc8 {[%clk 0:01:14]} 31. dxc4 {[%clk 0:00:03]}  Bxg4 {[%clk 0:01:13]} 0-1


[Site "https://www.chess.com"]

[Event "Titled Tuesday Blitz January 17 Early 2023"]
[White "Bryan, Jarod"]
[Black "Garakov, Mikhael"]
[WhiteFideId "2009617"]
[BlackFideId "4169034"]
[WhiteElo "2167"]
[BlackElo "2447"]
[Result "0-1"]
[Round "01"]
[TimeControl "180+2"]
[Date "2023.01.17"]
[WhiteClock "0:00:58"]
[BlackClock "0:01:33"]

1. e4 {[%clk 0:02:59]}  c5 {[%clk 0:02:58]} 2. Nf3 {[%clk 0:02:59]}  e6 {[%clk 0:02:58]} 3. b4 {[%clk 0:02:59]}  cxb4 {[%clk 0:02:57]} 4. d4 {[%clk 0:02:59]}  Nf6 {[%clk 0:02:50]} 5. Bd3 {[%clk 0:02:58]}  b6 {[%clk 0:02:36]} 6. Qe2 {[%clk 0:02:45]}  Bb7 {[%clk 0:02:35]} 7. Nbd2 {[%clk 0:02:42]}  Be7 {[%clk 0:02:33]} 8. a3 {[%clk 0:02:41]}  Nc6 {[%clk 0:02:28]} 9. O-O {[%clk 0:02:13]}  a5 {[%clk 0:02:15]} 10. d5 {[%clk 0:01:54]}  exd5 {[%clk 0:02:15]} 11. e5 {[%clk 0:01:54]}  Ne4 {[%clk 0:02:15]} 12. Nxe4 {[%clk 0:01:53]}  dxe4 {[%clk 0:02:15]} 13. Qxe4 {[%clk 0:01:47]}  Qc7 {[%clk 0:02:08]} 14. Qg4 {[%clk 0:01:41]}  Nxe5 {[%clk 0:01:49]} 15. Nxe5 {[%clk 0:01:35]}  Qxe5 {[%clk 0:01:50]} 16. Bf4 {[%clk 0:01:33]}  Qe6 {[%clk 0:01:43]} 17. Qxg7 {[%clk 0:01:29]}  O-O-O {[%clk 0:01:41]} 18. Qd4 {[%clk 0:00:58]}  Bf6 {[%clk 0:01:33]} 0-1


[Site "https://www.chess.com"]

[Event "Titled Tuesday Blitz January 17 Early 2023"]
[White "Fiorito, Francisco"]
[Black "Flis, Pawel"]
[WhiteFideId "180165"]
[BlackFideId "1112864"]
[WhiteElo "2305"]
[BlackElo "1879"]
[Result "1-0"]
[Round "01"]
[TimeControl "180+2"]
[Date "2023.01.17"]
[WhiteClock "0:00:07"]
[BlackClock "0:00:01"]

1. d4 {[%clk 0:02:58]}  Nf6 {[%clk 0:02:47]} 2. Nf3 {[%clk 0:02:56]}  c5 {[%clk 0:02:46]} 3. d5 {[%clk 0:02:54]}  b5 {[%clk 0:02:45]} 4. c4 {[%clk 0:02:41]}  g6 {[%clk 0:02:40]} 5. cxb5 {[%clk 0:02:36]}  a6 {[%clk 0:02:39]} 6. bxa6 {[%clk 0:02:34]}  Bg7 {[%clk 0:02:37]} 7. Nc3 {[%clk 0:02:34]}  O-O {[%clk 0:02:34]} 8. g3 {[%clk 0:02:34]}  Bxa6 {[%clk 0:02:31]} 9. e4 {[%clk 0:02:34]}  Bxf1 {[%clk 0:02:28]} 10. Kxf1 {[%clk 0:02:35]}  d6 {[%clk 0:02:29]} 11. Kg2 {[%clk 0:02:35]}  Nbd7 {[%clk 0:02:28]} 12. Qe2 {[%clk 0:02:31]}  Qa5 {[%clk 0:02:11]} 13. h4 {[%clk 0:02:29]}  h5 {[%clk 0:02:09]} 14. Bf4 {[%clk 0:02:26]}  Qa6 {[%clk 0:02:08]} 15. Qd2 {[%clk 0:02:20]}  Ng4 {[%clk 0:02:06]} 16. Rhe1 {[%clk 0:02:17]}  Rfb8 {[%clk 0:02:04]} 17. Bg5 {[%clk 0:01:59]}  Kf8 {[%clk 0:02:02]} 18. Rab1 {[%clk 0:01:42]}  Qc4 {[%clk 0:01:59]} 19. Rbc1 {[%clk 0:01:38]}  Nge5 {[%clk 0:01:53]} 20. Nxe5 {[%clk 0:01:37]}  Nxe5 {[%clk 0:01:54]} 21. Red1 {[%clk 0:01:29]}  Qb4 {[%clk 0:01:44]} 22. b3 {[%clk 0:01:25]}  Ng4 {[%clk 0:01:32]} 23. f3 {[%clk 0:01:22]}  Ne5 {[%clk 0:01:11]} 24. Ne2 {[%clk 0:01:14]}  Qxd2 {[%clk 0:01:03]} 25. Rxd2 {[%clk 0:01:15]}  Ra3 {[%clk 0:00:52]} 26. Be3 {[%clk 0:01:14]}  Rba8 {[%clk 0:00:49]} 27. Rcc2 {[%clk 0:01:14]}  c4 {[%clk 0:00:41]} 28. Nd4 {[%clk 0:01:04]}  cxb3 {[%clk 0:00:36]} 29. Nxb3 {[%clk 0:01:05]}  Nd7 {[%clk 0:00:25]} 30. Kf2 {[%clk 0:01:02]}  f5 {[%clk 0:00:22]} 31. Bd4 {[%clk 0:00:58]}  Bxd4+ {[%clk 0:00:20]} 32. Nxd4 {[%clk 0:00:59]}  fxe4 {[%clk 0:00:18]} 33. fxe4 {[%clk 0:01:00]}  Nc5 {[%clk 0:00:17]} 34. Re2 {[%clk 0:00:27]}  Nd3+ {[%clk 0:00:13]} 35. Kg2 {[%clk 0:00:26]}  Ne5 {[%clk 0:00:12]} 36. Ne6+ {[%clk 0:00:25]}  Kg8 {[%clk 0:00:09]} 37. Rf2 {[%clk 0:00:25]}  Ng4 {[%clk 0:00:07]} 38. Nf4 {[%clk 0:00:17]}  Ne3+ {[%clk 0:00:07]} 39. Kh3 {[%clk 0:00:16]}  Nxc2 {[%clk 0:00:08]} 40. Rxc2 {[%clk 0:00:17]}  Kf7 {[%clk 0:00:06]} 41. Rf2 {[%clk 0:00:10]}  Kg8 {[%clk 0:00:04]} 42. Nxg6 {[%clk 0:00:09]}  Rxa2 {[%clk 0:00:04]} 43. Nxe7+ {[%clk 0:00:10]}  Kg7 {[%clk 0:00:04]} 44. Rxa2 {[%clk 0:00:10]}  Rxa2 {[%clk 0:00:03]} 45. Nf5+ {[%clk 0:00:11]}  Kf6 {[%clk 0:00:03]} 46. Nxd6 {[%clk 0:00:12]}  Ke5 {[%clk 0:00:03]} 47. Nf7+ {[%clk 0:00:10]}  Kxe4 {[%clk 0:00:03]} 48. d6 {[%clk 0:00:11]}  Rd2 {[%clk 0:00:03]} 49. g4 {[%clk 0:00:09]}  hxg4+ {[%clk 0:00:01]} 50. Kxg4 {[%clk 0:00:07]} 1-0


[Site "https://www.chess.com"]

[Event "Titled Tuesday Blitz January 17 Early 2023"]
[White "Aung Thant Zin"]
[Black "ArchibaldCerveza29"]
[WhiteFideId "13000063"]
[WhiteElo "2268"]
[BlackElo "2547"]
[Result "0-1"]
[Round "01"]
[TimeControl "180+2"]
[Date "2023.01.17"]
[WhiteClock "0:00:08"]
[BlackClock "0:00:16"]

1. e4 {[%clk 0:02:58]}  e5 {[%clk 0:02:59]} 2. Nf3 {[%clk 0:02:58]}  Nc6 {[%clk 0:02:59]} 3. d4 {[%clk 0:02:58]}  exd4 {[%clk 0:02:59]} 4. Nxd4 {[%clk 0:02:58]}  Bc5 {[%clk 0:03:00]} 5. Nb3 {[%clk 0:02:58]}  Bb6 {[%clk 0:02:59]} 6. a4 {[%clk 0:02:58]}  a5 {[%clk 0:02:57]} 7. Be2 {[%clk 0:02:57]}  Nf6 {[%clk 0:02:56]} 8. Nc3 {[%clk 0:02:57]}  d6 {[%clk 0:02:55]} 9. Bg5 {[%clk 0:02:56]}  h6 {[%clk 0:02:54]} 10. Bh4 {[%clk 0:02:54]}  Be6 {[%clk 0:02:48]} 11. O-O {[%clk 0:02:47]}  O-O {[%clk 0:02:32]} 12. Kh1 {[%clk 0:02:43]}  Bxb3 {[%clk 0:01:55]} 13. cxb3 {[%clk 0:02:43]}  Bd4 {[%clk 0:01:47]} 14. f4 {[%clk 0:02:05]}  Qe8 {[%clk 0:01:40]} 15. e5 {[%clk 0:01:48]}  Bxc3 {[%clk 0:00:55]} 16. exf6 {[%clk 0:01:45]}  Bxf6 {[%clk 0:00:52]} 17. Bxf6 {[%clk 0:01:44]}  gxf6 {[%clk 0:00:53]} 18. Bd3 {[%clk 0:01:40]}  f5 {[%clk 0:00:36]} 19. Re1 {[%clk 0:01:26]}  Qd8 {[%clk 0:00:34]} 20. Qh5 {[%clk 0:01:15]}  Qf6 {[%clk 0:00:33]} 21. Bxf5 {[%clk 0:01:08]}  Rae8 {[%clk 0:00:27]} 22. h3 {[%clk 0:00:59]}  Nd4 {[%clk 0:00:25]} 23. Bd3 {[%clk 0:00:56]}  Qxf4 {[%clk 0:00:20]} 24. Rf1 {[%clk 0:00:39]}  Qg5 {[%clk 0:00:20]} 25. Qd1 {[%clk 0:00:35]}  Re3 {[%clk 0:00:20]} 26. Bc4 {[%clk 0:00:28]}  c5 {[%clk 0:00:20]} 27. Rf2 {[%clk 0:00:22]}  d5 {[%clk 0:00:20]} 28. Bb5 {[%clk 0:00:21]}  f5 {[%clk 0:00:17]} 29. Bf1 {[%clk 0:00:19]}  f4 {[%clk 0:00:16]} 30. Rc1 {[%clk 0:00:16]}  b6 {[%clk 0:00:15]} 31. Rc3 {[%clk 0:00:16]}  Nf5 {[%clk 0:00:14]} 32. Rf3 {[%clk 0:00:13]}  Ng3+ {[%clk 0:00:14]} 33. Kg1 {[%clk 0:00:14]}  Rfe8 {[%clk 0:00:15]} 34. Qd2 {[%clk 0:00:10]}  Re1 {[%clk 0:00:14]} 35. Qf2 {[%clk 0:00:10]}  Rxf1+ {[%clk 0:00:13]} 36. Qxf1 {[%clk 0:00:09]}  Nxf1 {[%clk 0:00:14]} 37. Kxf1 {[%clk 0:00:09]}  d4 {[%clk 0:00:15]} 38. Rcd3 {[%clk 0:00:09]}  Re3 {[%clk 0:00:15]} 39. Rdxe3 {[%clk 0:00:07]}  fxe3 {[%clk 0:00:16]} 40. Ke2 {[%clk 0:00:08]}  Qxg2+ {[%clk 0:00:16]} 41. Kd3 {[%clk 0:00:08]}  Qxf3 {[%clk 0:00:16]} 0-1


[Site "https://www.chess.com"]